[Event "*** Titled Tuesday Blitz"]
[Site "Chess.com"]
[Date "2018.11.06"]
[Round "7"]
[White "m3alam"]
[Black "aquaticpineapples"]
[Result "0-1"]
[WhiteElo "2112"]
[BlackElo "2020"]
[TimeControl "180+2"]
[EndTime "14:38:34 PST"]
[Termination "aquaticpineapples won by resignation"]

1. d4 {[%clk 0:03:01.9]} 1... d5 {[%clk 0:03:00.7]} 2. Nf3 {[%clk 0:03:02.6]}
2... c5 {[%clk 0:03:00.9]} 3. g3 {[%clk 0:03:04.5]} 3... cxd4 {[%clk 0:02:59.9]}
4. Bg2 {[%clk 0:03:02.3]} 4... Nf6 {[%clk 0:02:57.7]} 5. O-O {[%clk 0:03:02.3]}
5... Nc6 {[%clk 0:02:52.8]} 6. Nxd4 {[%clk 0:03:02.1]} 6... e6 {[%clk
0:02:52.2]} 7. c4 {[%clk 0:03:02.1]} 7... Nxd4 {[%clk 0:02:52.7]} 8. Qxd4 {[%clk
0:03:02.3]} 8... dxc4 {[%clk 0:02:51.3]} 9. Qxd8+ {[%clk 0:03:01.7]} 9... Kxd8
{[%clk 0:02:52.5]} 10. Bg5 {[%clk 0:03:01.9]} 10... h6 {[%clk 0:02:47.1]} 11.
Bf4 {[%clk 0:02:56.7]} 11... Bc5 {[%clk 0:02:41.7]} 12. Nd2 {[%clk 0:02:55.9]}
12... Ke7 {[%clk 0:02:39.1]} 13. Nxc4 {[%clk 0:02:55.4]} 13... Rd8 {[%clk
0:02:33.3]} 14. a3 {[%clk 0:02:50.6]} 14... Nd5 {[%clk 0:02:23]} 15. Bd2 {[%clk
0:02:37]} 15... b5 {[%clk 0:02:16.4]} 16. Na5 {[%clk 0:02:32.1]} 16... Bd7
{[%clk 0:02:01.7]} 17. Rac1 {[%clk 0:02:18.7]} 17... Rac8 {[%clk 0:01:56.9]} 18.
e4 {[%clk 0:02:07.1]} 18... Nb6 {[%clk 0:01:44.6]} 19. Rxc5 {[%clk 0:02:05.7]}
19... Rxc5 {[%clk 0:01:39.3]} 20. Bb4 {[%clk 0:02:05.9]} 20... Rc8 {[%clk
0:01:29.6]} 21. Rc1 {[%clk 0:02:05.8]} 21... Na4 {[%clk 0:01:23.2]} 22. b3
{[%clk 0:01:57.7]} 22... Ke8 {[%clk 0:01:12.9]} 23. Bxc5 {[%clk 0:01:52.7]}
23... Rxc5 {[%clk 0:01:13.5]} 24. Rd1 {[%clk 0:01:34.4]} 24... Nc3 {[%clk
0:01:11]} 25. Rd2 {[%clk 0:01:25.7]} 25... Nb1 {[%clk 0:01:01.5]} 26. Rd1 {[%clk
0:01:22.1]} 26... Nxa3 {[%clk 0:00:59.1]} 27. Bf3 {[%clk 0:01:22.8]} 27... b4
{[%clk 0:00:55.4]} 28. Nb7 {[%clk 0:01:21.5]} 28... Rc3 {[%clk 0:00:51.7]} 29.
Nd6+ {[%clk 0:01:22]} 29... Ke7 {[%clk 0:00:48.9]} 30. Be2 {[%clk 0:01:17.6]}
30... Rxb3 {[%clk 0:00:45.3]} 31. e5 {[%clk 0:01:18.6]} 31... Rb1 {[%clk
0:00:43.6]} 32. Rxb1 {[%clk 0:01:16.5]} 32... Nxb1 {[%clk 0:00:45.5]} 33. Kf1
{[%clk 0:01:16.8]} 33... Nc3 {[%clk 0:00:38.7]} 34. Bc4 {[%clk 0:01:14.5]} 34...
a5 {[%clk 0:00:23.1]} 35. Ke1 {[%clk 0:01:15.2]} 35... f6 {[%clk 0:00:22.8]} 36.
f4 {[%clk 0:01:15.1]} 36... fxe5 {[%clk 0:00:24]} 37. fxe5 {[%clk 0:01:15.9]}
37... a4 {[%clk 0:00:25.3]} 38. Kd2 {[%clk 0:01:15.6]} 38... a3 {[%clk
0:00:25.8]} 39. Kc2 {[%clk 0:01:15.6]} 39... Ba4+ {[%clk 0:00:26.5]} 40. Kc1
{[%clk 0:01:14.7]} 40... Bc6 {[%clk 0:00:25.5]} 41. Bb3 {[%clk 0:01:09.3]} 41...
Bd5 {[%clk 0:00:25.1]} 42. Kc2 {[%clk 0:01:06.8]} 42... Bxb3+ {[%clk 0:00:23.9]}
43. Kxb3 {[%clk 0:01:07.2]} 43... a2 {[%clk 0:00:23.5]} 44. Kb2 {[%clk
0:01:07.6]} 44... Kd7 {[%clk 0:00:23.6]} 45. h4 {[%clk 0:01:02.5]} 45... Kc6
{[%clk 0:00:24.1]} 46. Ne8 {[%clk 0:00:59.6]} 46... g6 {[%clk 0:00:22]} 47. Nf6
{[%clk 0:00:54.1]} 47... Kc5 {[%clk 0:00:20.5]} 48. g4 {[%clk 0:00:48.4]} 48...
Kd4 {[%clk 0:00:20.8]} 49. h5 {[%clk 0:00:48.7]} 49... gxh5 {[%clk 0:00:21.2]}
50. gxh5 {[%clk 0:00:49.4]} 50... Kxe5 {[%clk 0:00:22]} 51. Ng4+ {[%clk
0:00:51.3]} 51... Kf4 {[%clk 0:00:22.7]} 52. Nxh6 {[%clk 0:00:53.2]} 52... Kg5
{[%clk 0:00:23.5]} 53. Nf7+ {[%clk 0:00:54.5]} 53... Kxh5 {[%clk 0:00:24.4]} 54.
Ne5 {[%clk 0:00:56.4]} 54... Kg5 {[%clk 0:00:25.1]} 55. Nd3 {[%clk 0:00:58.3]}
55... Kf5 {[%clk 0:00:15.5]} 56. Nxb4 {[%clk 0:00:58.9]} 56... e5 {[%clk
0:00:10.6]} 57. Nc2 {[%clk 0:00:59.9]} 57... Nd5 {[%clk 0:00:08.7]} 58. Kxa2
{[%clk 0:01:00.6]} 58... e4 {[%clk 0:00:09.8]} 59. Kb2 {[%clk 0:01:00.7]} 59...
Kf4 {[%clk 0:00:09.9]} 60. Kc1 {[%clk 0:01:01.6]} 60... Kf3 {[%clk 0:00:09.6]}
61. Kd2 {[%clk 0:01:01.2]} 61... Nf4 {[%clk 0:00:09.9]} 62. Ke1 {[%clk
0:00:59.9]} 62... Ng2+ {[%clk 0:00:10.3]} 63. Kd2 {[%clk 0:01:00.5]} 63... Nf4
{[%clk 0:00:11.4]} 64. Ke1 {[%clk 0:01:01.2]} 64... Nd5 {[%clk 0:00:12.4]} 65.
Nd4+ {[%clk 0:00:58.4]} 65... Ke3 {[%clk 0:00:13.3]} 66. Nc2+ {[%clk 0:00:58.7]}
66... Kd3 {[%clk 0:00:14.6]} 67. Kd1 {[%clk 0:00:54.4]} 67... Ne3+ {[%clk
0:00:14.2]} 68. Nxe3 {[%clk 0:00:54.6]} 68... Kxe3 {[%clk 0:00:16.1]} 69. Ke1
{[%clk 0:00:55.2]} 69... Kd3 {[%clk 0:00:17.5]} 70. Kd1 {[%clk 0:00:55.7]} 70...
e3 {[%clk 0:00:19]} 71. Ke1 {[%clk 0:00:49.3]} 71... e2 {[%clk 0:00:20]} 72. Kf2
{[%clk 0:00:48.4]} 72... Kd2 {[%clk 0:00:21.9]} 73. Kf3 {[%clk 0:00:49.1]} 73...
e1=Q {[%clk 0:00:23.8]} 74. Kf4 {[%clk 0:00:51]} 74... Qe3+ {[%clk 0:00:24.9]}
0-1

[Event "*** Titled Tuesday Blitz"]
[Site "Chess.com"]
[Date "2018.11.06"]
[Round "7"]
[White "maximlavrov"]
[Black "TigranLPetrosyan"]
[Result "1-0"]
[WhiteElo "2623"]
[BlackElo "2811"]
[TimeControl "180+2"]
[EndTime "14:39:56 PST"]
[Termination "maximlavrov won by resignation"]

1. Nf3 {[%clk 0:02:59.1]} 1... g6 {[%clk 0:03:00.9]} 2. g3 {[%clk 0:03:00.2]}
2... Bg7 {[%clk 0:03:02.8]} 3. Bg2 {[%clk 0:03:01.7]} 3... e5 {[%clk 0:03:03.8]}
4. O-O {[%clk 0:03:03.3]} 4... d5 {[%clk 0:03:05.3]} 5. c4 {[%clk 0:03:03.3]}
5... Ne7 {[%clk 0:03:05.4]} 6. cxd5 {[%clk 0:03:03.9]} 6... Nxd5 {[%clk
0:03:07.3]} 7. Nc3 {[%clk 0:03:03.9]} 7... Ne7 {[%clk 0:02:58.7]} 8. d3 {[%clk
0:03:03.7]} 8... Nbc6 {[%clk 0:02:58.5]} 9. a3 {[%clk 0:02:44.6]} 9... a5 {[%clk
0:02:55.6]} 10. Bd2 {[%clk 0:02:44]} 10... O-O {[%clk 0:02:55.3]} 11. Rc1 {[%clk
0:02:45]} 11... h6 {[%clk 0:02:55.1]} 12. Na4 {[%clk 0:02:38.7]} 12... Qd6
{[%clk 0:02:36.9]} 13. Qc2 {[%clk 0:02:35]} 13... Bg4 {[%clk 0:02:34.3]} 14. h3
{[%clk 0:02:35.2]} 14... Be6 {[%clk 0:02:28]} 15. Nc5 {[%clk 0:02:34.8]} 15...
Bc8 {[%clk 0:02:29.1]} 16. Ne4 {[%clk 0:02:28]} 16... Qd8 {[%clk 0:02:25.8]} 17.
b4 {[%clk 0:02:27.8]} 17... axb4 {[%clk 0:02:25.6]} 18. axb4 {[%clk 0:02:29.7]}
18... Nf5 {[%clk 0:02:23.3]} 19. e3 {[%clk 0:02:28.4]} 19... Nd6 {[%clk
0:02:22.9]} 20. Nxd6 {[%clk 0:02:19.8]} 20... cxd6 {[%clk 0:02:24.8]} 21. b5
{[%clk 0:02:21]} 21... Ne7 {[%clk 0:02:24.5]} 22. d4 {[%clk 0:02:18.8]} 22...
Be6 {[%clk 0:02:16.5]} 23. dxe5 {[%clk 0:02:10.7]} 23... dxe5 {[%clk 0:02:18.4]}
24. Rfd1 {[%clk 0:02:11.8]} 24... Qb6 {[%clk 0:02:13.2]} 25. Qb1 {[%clk
0:02:12.7]} 25... Rfd8 {[%clk 0:02:08.1]} 26. e4 {[%clk 0:02:12.3]} 26... Kh7
{[%clk 0:01:57.9]} 27. Be3 {[%clk 0:02:13.1]} 27... Rxd1+ {[%clk 0:01:59.4]} 28.
Rxd1 {[%clk 0:02:12.4]} 28... Qa5 {[%clk 0:02:01.3]} 29. Bf1 {[%clk 0:02:09.3]}
29... Nc8 {[%clk 0:02:00.4]} 30. Nd2 {[%clk 0:02:09.5]} 30... Nb6 {[%clk
0:01:59.5]} 31. Nb3 {[%clk 0:02:09.8]} 31... Qa3 {[%clk 0:01:40.1]} 32. Bxb6
{[%clk 0:02:00.5]} 32... Qxb3 {[%clk 0:01:41.3]} 33. Qxb3 {[%clk 0:02:01.6]}
33... Bxb3 {[%clk 0:01:43.2]} 34. Rd7 {[%clk 0:02:03.3]} 34... Ra4 {[%clk
0:01:44.3]} 35. Rxb7 {[%clk 0:02:03.6]} 35... Rxe4 {[%clk 0:01:39.5]} 36. Bg2
{[%clk 0:02:03.3]} 36... Re1+ {[%clk 0:01:27.1]} 37. Kh2 {[%clk 0:02:04.1]}
37... e4 {[%clk 0:01:29]} 38. Be3 {[%clk 0:02:04.4]} 38... Bd5 {[%clk
0:01:24.7]} 39. Rd7 {[%clk 0:02:04.8]} 39... Be6 {[%clk 0:01:24.7]} 40. Ra7
{[%clk 0:02:04.8]} 40... Rb1 {[%clk 0:01:19.9]} 41. b6 {[%clk 0:02:04.5]} 41...
Bd5 {[%clk 0:01:21.4]} 42. Rd7 {[%clk 0:01:56.7]} 42... Be6 {[%clk 0:01:21.8]}
43. Rc7 {[%clk 0:01:58]} 43... Rb4 {[%clk 0:01:15.7]} 44. h4 {[%clk 0:01:47.9]}
44... Be5 {[%clk 0:01:12.1]} 45. Rc5 {[%clk 0:01:48.6]} 45... Bb8 {[%clk
0:01:04.5]} 46. Ra5 {[%clk 0:01:49.5]} 46... Bd6 {[%clk 0:01:01]} 47. Bh3 {[%clk
0:01:37.9]} 47... Bxh3 {[%clk 0:00:51.5]} 48. Kxh3 {[%clk 0:01:39.8]} 48... Kg7
{[%clk 0:00:53.4]} 49. h5 {[%clk 0:01:40.8]} 49... Kf6 {[%clk 0:00:47.3]} 50.
hxg6 {[%clk 0:01:40.4]} 50... fxg6 {[%clk 0:00:45.2]} 51. g4 {[%clk 0:01:34.9]}
51... g5 {[%clk 0:00:41.9]} 52. Rf5+ {[%clk 0:01:31.9]} 52... Ke6 {[%clk
0:00:42.6]} 53. Kg2 {[%clk 0:01:32.5]} 53... Be5 {[%clk 0:00:37.1]} 54. Rf8
{[%clk 0:01:30.7]} 54... Rb2 {[%clk 0:00:37.2]} 55. Re8+ {[%clk 0:01:26]} 55...
Kd5 {[%clk 0:00:38.5]} 56. Rd8+ {[%clk 0:01:26.7]} 56... Ke6 {[%clk 0:00:39.7]}
57. Rd2 {[%clk 0:01:21.6]} 57... Rb5 {[%clk 0:00:32.9]} 58. Rd1 {[%clk
0:01:17.5]} 58... Bf4 {[%clk 0:00:30.4]} 59. Rh1 {[%clk 0:01:17.9]} 59... Rb2
{[%clk 0:00:21.9]} 60. Rxh6+ {[%clk 0:01:09.6]} 60... Kd5 {[%clk 0:00:23.1]} 61.
Kf1 {[%clk 0:00:58.6]} 61... Bxe3 {[%clk 0:00:23.3]} 62. fxe3 {[%clk 0:01:00.5]}
62... Kc4 {[%clk 0:00:24.7]} 63. Rd6 {[%clk 0:00:58.6]} 63... Kc3 {[%clk
0:00:25.8]} 64. Ke1 {[%clk 0:00:56.3]} 64... Kc4 {[%clk 0:00:21.3]} 65. Rd4+
{[%clk 0:00:50.9]} 65... Kc3 {[%clk 0:00:21.9]} 66. Rxe4 {[%clk 0:00:49.8]}
66... Kd3 {[%clk 0:00:22.4]} 67. Re6 {[%clk 0:00:50.8]} 67... Rb4 {[%clk
0:00:21.7]} 68. Kf2 {[%clk 0:00:36.5]} 68... Rxg4 {[%clk 0:00:21.9]} 69. b7
{[%clk 0:00:37.9]} 69... Rb4 {[%clk 0:00:22.8]} 70. Re7 {[%clk 0:00:39.2]} 70...
Rb1 {[%clk 0:00:17.4]} 71. Kf3 {[%clk 0:00:39.4]} 71... Kc4 {[%clk 0:00:18.2]}
72. Kg4 {[%clk 0:00:39.6]} 72... Kd5 {[%clk 0:00:19]} 73. Kxg5 {[%clk
0:00:40.5]} 73... Kd6 {[%clk 0:00:20.4]} 74. Rh7 {[%clk 0:00:40.7]} 74... Ke5
{[%clk 0:00:21.9]} 75. Kg4 {[%clk 0:00:40.9]} 75... Rb4+ {[%clk 0:00:13.1]} 76.
Kf3 {[%clk 0:00:41.3]} 76... Rb3 {[%clk 0:00:13.7]} 77. Ke2 {[%clk 0:00:38.6]}
77... Ke4 {[%clk 0:00:14]} 78. Re7+ {[%clk 0:00:38.5]} 78... Kd5 {[%clk
0:00:15.5]} 79. Kd2 {[%clk 0:00:39.6]} 79... Kc6 {[%clk 0:00:14.6]} 80. Kc2
{[%clk 0:00:37.5]} 80... Rxb7 {[%clk 0:00:10.5]} 81. Rxb7 {[%clk 0:00:37.6]}
81... Kxb7 {[%clk 0:00:12.4]} 82. Kd3 {[%clk 0:00:39.1]} 82... Kc7 {[%clk
0:00:13.7]} 83. Ke4 {[%clk 0:00:38.9]} 83... Kd6 {[%clk 0:00:13]} 84. Kf5 {[%clk
0:00:39.9]} 84... Ke7 {[%clk 0:00:14]} 85. Ke5 {[%clk 0:00:40.9]} 85... Kd7
{[%clk 0:00:14.5]} 86. Kf6 {[%clk 0:00:41]} 86... Kd6 {[%clk 0:00:15.9]} 87. e4
{[%clk 0:00:41.8]} 87... Kd7 {[%clk 0:00:17.3]} 88. e5 {[%clk 0:00:41.5]} 88...
Kd8 {[%clk 0:00:18.8]} 89. Kf7 {[%clk 0:00:42.6]} 1-0

[Event "*** Titled Tuesday Blitz"]
[Site "Chess.com"]
[Date "2018.11.06"]
[Round "7"]
[White "Jospem"]
[Black "iturrizaga"]
[Result "0-1"]
[WhiteElo "2805"]
[BlackElo "2811"]
[TimeControl "180+2"]
[EndTime "14:42:24 PST"]
[Termination "iturrizaga won by resignation"]

1. e4 {[%clk 0:03:01.9]} 1... c5 {[%clk 0:03:00.8]} 2. Nf3 {[%clk 0:03:03.4]}
2... g6 {[%clk 0:03:02.3]} 3. d4 {[%clk 0:03:05]} 3... cxd4 {[%clk 0:03:04.2]}
4. Nxd4 {[%clk 0:03:06.8]} 4... Nc6 {[%clk 0:03:05.5]} 5. Ne2 {[%clk 0:03:03.6]}
5... Bg7 {[%clk 0:03:05.3]} 6. Nbc3 {[%clk 0:03:05.1]} 6... Rb8 {[%clk
0:03:04.6]} 7. g3 {[%clk 0:03:04.7]} 7... b5 {[%clk 0:03:05.8]} 8. Bg2 {[%clk
0:03:04.6]} 8... b4 {[%clk 0:03:07]} 9. Nd5 {[%clk 0:03:05.7]} 9... d6 {[%clk
0:03:08.2]} 10. O-O {[%clk 0:03:06.6]} 10... Nf6 {[%clk 0:03:08.7]} 11. a3
{[%clk 0:03:01.5]} 11... a5 {[%clk 0:03:07.6]} 12. axb4 {[%clk 0:03:00.9]} 12...
axb4 {[%clk 0:03:09.5]} 13. Bg5 {[%clk 0:02:55.1]} 13... Nd7 {[%clk 0:03:03.4]}
14. b3 {[%clk 0:02:47.3]} 14... h6 {[%clk 0:03:00]} 15. Be3 {[%clk 0:02:48.2]}
15... e6 {[%clk 0:02:57.1]} 16. Ndf4 {[%clk 0:02:49.2]} 16... Nde5 {[%clk
0:02:55.7]} 17. Kh1 {[%clk 0:02:37]} 17... Ng4 {[%clk 0:02:48.8]} 18. Bd2 {[%clk
0:02:36.8]} 18... O-O {[%clk 0:02:49]} 19. Ra4 {[%clk 0:02:29.8]} 19... Qb6
{[%clk 0:02:45.5]} 20. Nd3 {[%clk 0:02:21.8]} 20... Ba6 {[%clk 0:02:27]} 21.
Nef4 {[%clk 0:02:21.4]} 21... Nge5 {[%clk 0:02:14.5]} 22. Be3 {[%clk 0:02:22.5]}
22... Qb7 {[%clk 0:02:07.1]} 23. Re1 {[%clk 0:02:19.4]} 23... Bb5 {[%clk
0:02:07]} 24. Ra2 {[%clk 0:02:16.5]} 24... Rfd8 {[%clk 0:01:58.1]} 25. Qd2
{[%clk 0:02:12.3]} 25... Ng4 {[%clk 0:01:55.8]} 26. Nxb4 {[%clk 0:02:02.9]}
26... Nxe3 {[%clk 0:01:47.3]} 27. Rxe3 {[%clk 0:02:04.3]} 27... Ne5 {[%clk
0:01:48.2]} 28. Nbd3 {[%clk 0:01:53.4]} 28... Ng4 {[%clk 0:01:35.7]} 29. Re1
{[%clk 0:01:42.1]} 29... Bc6 {[%clk 0:01:34.1]} 30. Qe2 {[%clk 0:01:36.4]} 30...
Nf6 {[%clk 0:01:30.6]} 31. f3 {[%clk 0:01:35.9]} 31... Nd7 {[%clk 0:01:30.7]}
32. h4 {[%clk 0:01:29.2]} 32... Rdc8 {[%clk 0:01:27.4]} 33. Qf2 {[%clk
0:01:23.3]} 33... Ra8 {[%clk 0:01:23.6]} 34. Rxa8 {[%clk 0:01:23.2]} 34... Rxa8
{[%clk 0:01:25.5]} 35. Qd2 {[%clk 0:01:16.6]} 35... Qc7 {[%clk 0:01:11.8]} 36.
Rd1 {[%clk 0:01:17.2]} 36... Bb7 {[%clk 0:01:10.2]} 37. c4 {[%clk 0:01:16.9]}
37... Ra3 {[%clk 0:01:09.1]} 38. Qb4 {[%clk 0:01:11.5]} 38... Ra2 {[%clk
0:01:05]} 39. Nc1 {[%clk 0:01:09.1]} 39... Ra6 {[%clk 0:01:04.6]} 40. Qd2 {[%clk
0:01:06.8]} 40... Ne5 {[%clk 0:00:58.1]} 41. Nce2 {[%clk 0:01:01]} 41... Rb6
{[%clk 0:00:58.1]} 42. Nd4 {[%clk 0:01:00.3]} 42... Ba6 {[%clk 0:00:51.2]} 43.
Nfe2 {[%clk 0:01:00.5]} 43... Nd7 {[%clk 0:00:51.2]} 44. Qa5 {[%clk 0:00:54.9]}
44... Qc5 {[%clk 0:00:44.4]} 45. Qa2 {[%clk 0:00:42.9]} 45... Bb7 {[%clk
0:00:39.8]} 46. Qa4 {[%clk 0:00:31.2]} 46... Ne5 {[%clk 0:00:35.9]} 47. Qe8+
{[%clk 0:00:27.8]} 47... Kh7 {[%clk 0:00:36.9]} 48. h5 {[%clk 0:00:26.5]} 48...
gxh5 {[%clk 0:00:20.7]} 49. Nf4 {[%clk 0:00:22.6]} 49... Qc8 {[%clk 0:00:18]}
50. Qxc8 {[%clk 0:00:21.8]} 50... Bxc8 {[%clk 0:00:19.9]} 51. Nxh5 {[%clk
0:00:22.9]} 51... Bh8 {[%clk 0:00:21.2]} 52. Nf4 {[%clk 0:00:21.2]} 52... Bd7
{[%clk 0:00:21.6]} 53. Nfe2 {[%clk 0:00:22.1]} 53... Ng6 {[%clk 0:00:21.4]} 54.
Ra1 {[%clk 0:00:20.4]} 54... e5 {[%clk 0:00:21.6]} 55. Nb5 {[%clk 0:00:18.2]}
55... Bxb5 {[%clk 0:00:22.2]} 56. cxb5 {[%clk 0:00:20.1]} 56... Rxb5 {[%clk
0:00:23.6]} 57. Rb1 {[%clk 0:00:21.4]} 57... Ne7 {[%clk 0:00:21.1]} 58. Nc3
{[%clk 0:00:21.1]} 58... Rb4 {[%clk 0:00:22.5]} 59. Bf1 {[%clk 0:00:19.9]} 59...
f5 {[%clk 0:00:22.2]} 60. Bd3 {[%clk 0:00:19.7]} 60... fxe4 {[%clk 0:00:21.7]}
61. fxe4 {[%clk 0:00:21]} 61... Bf6 {[%clk 0:00:22]} 62. Na2 {[%clk 0:00:20.8]}
62... Rb6 {[%clk 0:00:22.3]} 63. b4 {[%clk 0:00:22.2]} 63... Bg5 {[%clk
0:00:23.4]} 64. b5 {[%clk 0:00:23]} 64... Be3 {[%clk 0:00:24.3]} 65. Nb4 {[%clk
0:00:23.4]} 65... Bc5 {[%clk 0:00:23.9]} 66. Na6 {[%clk 0:00:24.2]} 66... Bd4
{[%clk 0:00:23.8]} 67. Rc1 {[%clk 0:00:25]} 67... Kg7 {[%clk 0:00:20.4]} 68. Rc7
{[%clk 0:00:24.9]} 68... Kf6 {[%clk 0:00:21.1]} 69. Nb4 {[%clk 0:00:23]} 69...
Bc5 {[%clk 0:00:21.7]} 70. Na6 {[%clk 0:00:22]} 70... Bd4 {[%clk 0:00:22.4]} 71.
Kg2 {[%clk 0:00:23.3]} 71... d5 {[%clk 0:00:23.4]} 72. exd5 {[%clk 0:00:22.2]}
72... Nxd5 {[%clk 0:00:24.7]} 73. Rc6+ {[%clk 0:00:23.1]} 73... Rxc6 {[%clk
0:00:24.7]} 74. bxc6 {[%clk 0:00:25]} 74... Bb6 {[%clk 0:00:21.5]} 75. Be4
{[%clk 0:00:24.4]} 75... Ne7 {[%clk 0:00:21.4]} 76. c7 {[%clk 0:00:22.7]} 76...
Ke6 {[%clk 0:00:21.2]} 77. Bf3 {[%clk 0:00:23.8]} 77... Kd6 {[%clk 0:00:17.9]}
78. c8=Q {[%clk 0:00:18.8]} 78... Nxc8 {[%clk 0:00:18.5]} 79. Nb4 {[%clk
0:00:20.7]} 79... Ne7 {[%clk 0:00:19.8]} 80. Nd3 {[%clk 0:00:21.6]} 80... Bd4
{[%clk 0:00:21.1]} 81. Be4 {[%clk 0:00:21.5]} 81... Ke6 {[%clk 0:00:21.6]} 82.
Ne1 {[%clk 0:00:21.9]} 82... Kf6 {[%clk 0:00:22.5]} 83. Nf3 {[%clk 0:00:22.9]}
83... Nc8 {[%clk 0:00:23.6]} 84. Nh4 {[%clk 0:00:22.3]} 84... Nd6 {[%clk
0:00:24.6]} 85. Ba8 {[%clk 0:00:22.3]} 85... Bc3 {[%clk 0:00:24.2]} 86. Kf3
{[%clk 0:00:23]} 86... Be1 {[%clk 0:00:25.1]} 87. Ng2 {[%clk 0:00:22.4]} 87...
Bd2 {[%clk 0:00:26.2]} 88. Ke2 {[%clk 0:00:23.3]} 88... Bg5 {[%clk 0:00:27.1]}
89. Kf3 {[%clk 0:00:24.7]} 89... Kf5 {[%clk 0:00:28.1]} 90. g4+ {[%clk
0:00:23.1]} 90... Ke6 {[%clk 0:00:29.3]} 91. Ne1 {[%clk 0:00:21.7]} 91... Bd8
{[%clk 0:00:25]} 92. Nd3 {[%clk 0:00:22.1]} 92... Bb6 {[%clk 0:00:26.2]} 93. Bc6
{[%clk 0:00:18.6]} 93... Bd4 {[%clk 0:00:27]} 94. Nb4 {[%clk 0:00:18.2]} 94...
Kf6 {[%clk 0:00:23.6]} 95. Nd5+ {[%clk 0:00:17.9]} 95... Kg5 {[%clk 0:00:24.6]}
96. Nc7 {[%clk 0:00:17.8]} 96... Kh4 {[%clk 0:00:22.8]} 97. Ne8 {[%clk
0:00:12.7]} 97... Nf7 {[%clk 0:00:11.3]} 98. Nf6 {[%clk 0:00:13.7]} 98... Ng5+
{[%clk 0:00:11.4]} 99. Kg2 {[%clk 0:00:14.7]} 99... Ne6 {[%clk 0:00:10.9]} 100.
Ba8 {[%clk 0:00:13.7]} 100... Kg5 {[%clk 0:00:10.7]} 101. Ng8 {[%clk 0:00:14.4]}
101... Nc5 {[%clk 0:00:07.2]} 102. Kf3 {[%clk 0:00:13.4]} 102... Bb2 {[%clk
0:00:07.4]} 103. Ne7 {[%clk 0:00:12.9]} 103... Ne6 {[%clk 0:00:08.4]} 104. Nf5
{[%clk 0:00:12.1]} 104... h5 {[%clk 0:00:09.1]} 105. Ne3 {[%clk 0:00:10.7]}
105... h4 {[%clk 0:00:10.3]} 106. Kg2 {[%clk 0:00:10.3]} 106... Nf4+ {[%clk
0:00:11.1]} 107. Kf3 {[%clk 0:00:11.7]} 107... Ne6 {[%clk 0:00:12.2]} 108. Kf2
{[%clk 0:00:12.8]} 108... Bd4 {[%clk 0:00:13.1]} 109. Kf3 {[%clk 0:00:13.9]}
109... Bxe3 {[%clk 0:00:13.3]} 110. Kxe3 {[%clk 0:00:15.3]} 110... Nc5 {[%clk
0:00:13.5]} 111. Bf3 {[%clk 0:00:15.3]} 111... h3 {[%clk 0:00:12.2]} 112. Kf2
{[%clk 0:00:16.4]} 112... Kf4 {[%clk 0:00:13.2]} 113. g5 {[%clk 0:00:17.6]}
113... Nd3+ {[%clk 0:00:11.7]} 114. Ke2 {[%clk 0:00:18.9]} 114... e4 {[%clk
0:00:12.1]} 115. g6 {[%clk 0:00:15.3]} 115... exf3+ {[%clk 0:00:10.5]} 116. Kxd3
{[%clk 0:00:16.5]} 116... f2 {[%clk 0:00:11.5]} 117. Ke2 {[%clk 0:00:17.9]}
117... h2 {[%clk 0:00:12.8]} 118. g7 {[%clk 0:00:19.3]} 118... f1=Q+ {[%clk
0:00:14.1]} 119. Kxf1 {[%clk 0:00:21.2]} 119... h1=Q+ {[%clk 0:00:15.4]} 120.
Ke2 {[%clk 0:00:23.1]} 120... Qg2+ {[%clk 0:00:16.2]} 0-1

[Event "*** Titled Tuesday Blitz"]
[Site "Chess.com"]
[Date "2018.11.06"]
[Round "8"]
[White "RegZryt"]
[Black "dretch"]
[Result "0-1"]
[WhiteElo "2524"]
[BlackElo "2779"]
[TimeControl "180+2"]
[EndTime "14:45:43 PST"]
[Termination "dretch won by resignation"]

1. d4 {[%clk 0:03:01.9]} 1... d5 {[%clk 0:02:58.6]} 2. c4 {[%clk 0:03:03]} 2...
c6 {[%clk 0:02:59.7]} 3. Nf3 {[%clk 0:03:03.9]} 3... Nf6 {[%clk 0:03:00.6]} 4.
e3 {[%clk 0:03:05.4]} 4... Bf5 {[%clk 0:03:01.1]} 5. Nc3 {[%clk 0:03:03.6]} 5...
e6 {[%clk 0:03:01.4]} 6. Nh4 {[%clk 0:03:04.9]} 6... Bg6 {[%clk 0:03:02.1]} 7.
Nxg6 {[%clk 0:03:05.7]} 7... hxg6 {[%clk 0:03:02.9]} 8. Qb3 {[%clk 0:03:07.4]}
8... Qb6 {[%clk 0:02:53.4]} 9. Bd2 {[%clk 0:03:08.7]} 9... Nbd7 {[%clk
0:02:53.3]} 10. Rc1 {[%clk 0:02:54.7]} 10... Be7 {[%clk 0:02:45.8]} 11. Bd3
{[%clk 0:02:52.2]} 11... dxc4 {[%clk 0:02:43]} 12. Bxc4 {[%clk 0:02:51.7]} 12...
Qxb3 {[%clk 0:02:39.2]} 13. Bxb3 {[%clk 0:02:50.6]} 13... O-O-O {[%clk 0:02:40]}
14. f3 {[%clk 0:02:50.5]} 14... Kb8 {[%clk 0:02:31.1]} 15. e4 {[%clk 0:02:50.6]}
15... Nh5 {[%clk 0:02:26.2]} 16. Kf2 {[%clk 0:02:42.5]} 16... Nc5 {[%clk
0:02:24.9]} 17. g4 {[%clk 0:02:28.4]} 17... Nd3+ {[%clk 0:02:17.7]} 18. Kf1
{[%clk 0:02:25.7]} 18... Ng3+ {[%clk 0:02:06.4]} 19. hxg3 {[%clk 0:02:24.3]}
19... Rxh1+ {[%clk 0:02:06.7]} 0-1

[Event "*** Titled Tuesday Blitz"]
[Site "Chess.com"]
[Date "2018.11.06"]
[Round "8"]
[White "GadimbayliA"]
[Black "kleinebeer98"]
[Result "0-1"]
[WhiteElo "2651"]
[BlackElo "2630"]
[TimeControl "180+2"]
[EndTime "14:47:08 PST"]
[Termination "kleinebeer98 won by resignation"]

1. Nf3 {[%clk 0:03:01.9]} 1... Nf6 {[%clk 0:02:58.6]} 2. b3 {[%clk 0:03:03.1]}
2... b6 {[%clk 0:02:54]} 3. Bb2 {[%clk 0:03:05]} 3... Bb7 {[%clk 0:02:55.9]} 4.
e3 {[%clk 0:03:04.4]} 4... c5 {[%clk 0:02:56.7]} 5. Be2 {[%clk 0:03:04.8]} 5...
Nc6 {[%clk 0:02:57.1]} 6. O-O {[%clk 0:03:05.7]} 6... g6 {[%clk 0:02:56.6]} 7.
c4 {[%clk 0:03:07]} 7... Bg7 {[%clk 0:02:57.4]} 8. d4 {[%clk 0:03:08.6]} 8...
cxd4 {[%clk 0:02:57.3]} 9. Nxd4 {[%clk 0:03:10.1]} 9... Nxd4 {[%clk 0:02:55.4]}
10. Qxd4 {[%clk 0:03:12]} 10... O-O {[%clk 0:02:55.9]} 11. Nc3 {[%clk 0:03:13]}
11... d5 {[%clk 0:02:54.4]} 12. Nxd5 {[%clk 0:03:02.9]} 12... Ne8 {[%clk
0:02:36.7]} 13. Qh4 {[%clk 0:01:22.6]} 13... Bxb2 {[%clk 0:02:35.4]} 14. Nxe7+
{[%clk 0:01:22.7]} 14... Kh8 {[%clk 0:02:20.6]} 15. Rad1 {[%clk 0:01:24.6]}
15... Bf6 {[%clk 0:02:09.1]} 16. Qh3 {[%clk 0:00:47.5]} 16... Qxe7 {[%clk
0:02:08.2]} 17. Rd7 {[%clk 0:00:48.5]} 17... Bc8 {[%clk 0:02:09.5]} 0-1